Department Family,Entity,Date Paid,Expense Type,Expense Area,Supplier,Transaction Number,Amount (�),Supplier VAT Registration Number
BEIS,Met Office,2023-01-13,06 ACCOMMODATION,CHIEF FINANCIAL OFFICER,ABOVE THE REST COMMERCIAL CLEANING LTD,475155,565,166969348
BEIS,Met Office,2023-01-12,11 SERVICES,CHIEF FINANCIAL OFFICER,ADT FIRE AND SECURITY PLC,475260,210.96,413633086
BEIS,Met Office,2023-01-06,03 STAFF COSTS T&S,CHIEF FINANCIAL OFFICER,ALLSTAR BUSINESS SOLUTIONS LTD,475004,2136.52,747880191
BEIS,Met Office,2023-01-18,03 STAFF COSTS T&S,CHIEF FINANCIAL OFFICER,ALLSTAR BUSINESS SOLUTIONS LTD,475598,2245.17,747880191
BEIS,Met Office,2023-01-10,06 ACCOMMODATION,CHIEF FINANCIAL OFFICER,ANGLIAN WATER BUSINESS NATIONAL LTD,475093,30.1,51406002
BEIS,Met Office,2023-01-10,06 ACCOMMODATION,CHIEF FINANCIAL OFFICER,ANGLIAN WATER BUSINESS NATIONAL LTD,475143,30.99,51406002
BEIS,Met Office,2023-01-17,11 SERVICES,CHIEF FINANCIAL OFFICER,ANVIL MOBILE LIMITED,475461,198.15,981686175
BEIS,Met Office,2023-01-06,03 STAFF COSTS T&S,CHIEF FINANCIAL OFFICER,APPLE CENTRAL TAXIS,475014,1354.1,449238720
BEIS,Met Office,2023-01-31,13 MISCELLANEOUS,CHIEF FINANCIAL OFFICER,ARTHUR J. GALLAGHER INSURANCE BROKERS LIMITED,475839,11312,GB484746209
BEIS,Met Office,2023-01-11,11 SERVICES,CHIEF FINANCIAL OFFICER,Ashfords Llp,475247,0,844502439
BEIS,Met Office,2023-01-11,11 SERVICES,CHIEF FINANCIAL OFFICER,Ashfords Llp,475247,2485,844502439
BEIS,Met Office,2023-01-19,11 SERVICES,CHIEF FINANCIAL OFFICER,BABBLE CLOUD LIMITED,475648,985.73,GB206270049
BEIS,Met Office,2023-01-13,13 MISCELLANEOUS,CHIEF FINANCIAL OFFICER,BANNER GROUP LIMITED,475286,15.25,GB391085740
BEIS,Met Office,2023-01-18,13 MISCELLANEOUS,CHIEF FINANCIAL OFFICER,BANNER GROUP LIMITED,475586,19.32,GB391085740
BEIS,Met Office,2023-01-18,13 MISCELLANEOUS,CHIEF FINANCIAL OFFICER,BANNER GROUP LIMITED,475585,36.4,GB391085740
BEIS,Met Office,2023-01-24,13 MISCELLANEOUS,CHIEF FINANCIAL OFFICER,BANNER GROUP LIMITED,475768,192.19,GB391085740
BEIS,Met Office,2023-01-10,06 ACCOMMODATION,CHIEF FINANCIAL OFFICER,Belfast International Airport Ltd,475141,21982.5,617777601
BEIS,Met Office,2023-01-11,06 ACCOMMODATION,CHIEF FINANCIAL OFFICER,BIDVEST NOONAN UK LTD,475198,238.14,GB847176988
BEIS,Met Office,2023-01-05,06 ACCOMMODATION,CHIEF FINANCIAL OFFICER,BIDVEST NOONAN UK LTD,474937,457.31,GB847176988
BEIS,Met Office,2023-01-10,06 ACCOMMODATION,CHIEF FINANCIAL OFFICER,BIDVEST NOONAN UK LTD,474939,1013.83,GB847176988
BEIS,Met Office,2023-01-19,06 ACCOMMODATION,CHIEF FINANCIAL OFFICER,Biffa Waste Services Ltd,475645,75,537911627
BEIS,Met Office,2023-01-05,06 ACCOMMODATION,CHIEF FINANCIAL OFFICER,Biffa Waste Services Ltd,474882,170.1,537911627
BEIS,Met Office,2023-01-26,11 SERVICES,CHIEF FINANCIAL OFFICER,BITPOD LIMITED,475764,19351.24,124 9359 03
BEIS,Met Office,2023-01-09,06 ACCOMMODATION,CHIEF FINANCIAL OFFICER,British Gas Trading Ltd,474395,7.26,684966762
BEIS,Met Office,2023-01-23,11 SERVICES,CHIEF FINANCIAL OFFICER,BT GLOBAL SERVICES,475656,774.84,245719348
BEIS,Met Office,2023-01-11,11 SERVICES,CHIEF FINANCIAL OFFICER,BT GLOBAL SERVICES,475154,6026.67,245719348
BEIS,Met Office,2023-01-26,11 SERVICES,CHIEF FINANCIAL OFFICER,BT GLOBAL SERVICES,475806,11647.69,245719348
BEIS,Met Office,2023-01-26,11 SERVICES,CHIEF FINANCIAL OFFICER,BT plc,475807,7516.01,245719348
BEIS,Met Office,2023-01-11,11 SERVICES,CHIEF FINANCIAL OFFICER,BT plc,475146,7546.24,245719348
BEIS,Met Office,2023-01-05,06 ACCOMMODATION,CHIEF FINANCIAL OFFICER,BUSINESS SUPPORT CENTRE LTD,474924,49.71,927365208
BEIS,Met Office,2023-01-10,11 SERVICES,CHIEF FINANCIAL OFFICER,CABINET OFFICE - COF LEAD ACCOUNT,475144,33621.66,-
BEIS,Met Office,2023-01-26,06 ACCOMMODATION,CHIEF FINANCIAL OFFICER,CALOR GAS LIMITED,475795,268.4,207610984
BEIS,Met Office,2023-01-10,06 ACCOMMODATION,CHIEF FINANCIAL OFFICER,CALOR GAS LIMITED,475152,424.66,207610984
BEIS,Met Office,2023-01-23,06 ACCOMMODATION,CHIEF FINANCIAL OFFICER,CALOR GAS LIMITED,475699,1341.31,207610984
BEIS,Met Office,2023-01-13,13 MISCELLANEOUS,CHIEF FINANCIAL OFFICER,CANON UK LTD,475277,1.07,523797128
BEIS,Met Office,2023-01-13,13 MISCELLANEOUS,CHIEF FINANCIAL OFFICER,CANON UK LTD,475277,7.38,523797128
BEIS,Met Office,2023-01-13,13 MISCELLANEOUS,CHIEF FINANCIAL OFFICER,CANON UK LTD,475277,9.38,523797128
BEIS,Met Office,2023-01-13,13 MISCELLANEOUS,CHIEF FINANCIAL OFFICER,CANON UK LTD,475255,26.34,523797128
BEIS,Met Office,2023-01-13,13 MISCELLANEOUS,CHIEF FINANCIAL OFFICER,CANON UK LTD,475277,26.78,523797128
BEIS,Met Office,2023-01-13,13 MISCELLANEOUS,CHIEF FINANCIAL OFFICER,CANON UK LTD,475277,40,523797128
BEIS,Met Office,2023-01-13,13 MISCELLANEOUS,CHIEF FINANCIAL OFFICER,CANON UK LTD,475277,512.85,523797128
BEIS,Met Office,2023-01-11,13 MISCELLANEOUS,CHIEF FINANCIAL OFFICER,CANON UK LTD,475253,949.14,523797128
BEIS,Met Office,2023-01-11,13 MISCELLANEOUS,CHIEF FINANCIAL OFFICER,CANON UK LTD,475276,1981.11,523797128
BEIS,Met Office,2023-01-13,13 MISCELLANEOUS,CHIEF FINANCIAL OFFICER,CANON UK LTD,475254,11812.72,523797128
BEIS,Met Office,2023-01-06,06 ACCOMMODATION,CHIEF FINANCIAL OFFICER,CARDIFF EXECUTIVE CENTRE LTD,474942,22.12,864497378
BEIS,Met Office,2023-01-10,06 ACCOMMODATION,CHIEF FINANCIAL OFFICER,CARDIFF EXECUTIVE CENTRE LTD,475072,2470,864497378
BEIS,Met Office,2023-01-16,06 ACCOMMODATION,CHIEF FINANCIAL OFFICER,CBRE LTD,475466,11450,GB 736 3179 23
BEIS,Met Office,2023-01-12,06 ACCOMMODATION,CHIEF FINANCIAL OFFICER,CBRE MANAGED SERVICES LTD,475303,1,853936883
BEIS,Met Office,2023-01-25,11 SERVICES,CHIEF FINANCIAL OFFICER,CBRE MANAGED SERVICES LTD,475729,12049.35,853936883
BEIS,Met Office,2023-01-03,06 ACCOMMODATION,CHIEF FINANCIAL OFFICER,CBRE MANAGED SERVICES LTD,474542,20519.24,853936883
BEIS,Met Office,2023-01-10,06 ACCOMMODATION,CHIEF FINANCIAL OFFICER,CBRE MANAGED SERVICES LTD,474540,24295.65,853936883
BEIS,Met Office,2023-01-25,06 ACCOMMODATION,CHIEF FINANCIAL OFFICER,CBRE MANAGED SERVICES LTD,475761,27284.48,853936883
BEIS,Met Office,2023-01-12,06 ACCOMMODATION,CHIEF FINANCIAL OFFICER,CBRE MANAGED SERVICES LTD,475303,27808.34,853936883
BEIS,Met Office,2023-01-25,06 ACCOMMODATION,CHIEF FINANCIAL OFFICER,CBRE MANAGED SERVICES LTD,475760,149176.92,853936883
BEIS,Met Office,2023-01-19,08 SOFTWARE LICENCES,CHIEF FINANCIAL OFFICER,CEMAR,475632,850,915042161
BEIS,Met Office,2023-01-09,06 ACCOMMODATION,CHIEF FINANCIAL OFFICER,D&G OFFICE SERVICES LTD,474926,373.34,272997547
BEIS,Met Office,2023-01-25,13 MISCELLANEOUS,CHIEF FINANCIAL OFFICER,DEMSTAR BUSINESS SOLUTIONS LTD,24435,89.25,10156145J
BEIS,Met Office,2023-01-11,13 MISCELLANEOUS,CHIEF FINANCIAL OFFICER,DWYFOR COFFEE COMPANY LTD,473564,-15.88,559811116
BEIS,Met Office,2023-01-11,13 MISCELLANEOUS,CHIEF FINANCIAL OFFICER,DWYFOR COFFEE COMPANY LTD,474479,-7.94,559811116
BEIS,Met Office,2023-01-11,13 MISCELLANEOUS,CHIEF FINANCIAL OFFICER,DWYFOR COFFEE COMPANY LTD,474534,21.03,559811116
BEIS,Met Office,2023-01-11,13 MISCELLANEOUS,CHIEF FINANCIAL OFFICER,DWYFOR COFFEE COMPANY LTD,475297,48.9,559811116
BEIS,Met Office,2023-01-05,13 MISCELLANEOUS,CHIEF FINANCIAL OFFICER,EDEN SPRINGS UK LTD,474933,531.94,232160411
BEIS,Met Office,2023-01-30,13 MISCELLANEOUS,CHIEF FINANCIAL OFFICER,EDEN SPRINGS UK LTD,475889,678.08,232160411
BEIS,Met Office,2023-01-10,06 ACCOMMODATION,CHIEF FINANCIAL OFFICER,EDF ENERGY CUSTOMERS PLC,474944,-140869.08,523041202
BEIS,Met Office,2023-01-03,06 ACCOMMODATION,CHIEF FINANCIAL OFFICER,EDF ENERGY CUSTOMERS PLC,474769,3643.32,523041202
BEIS,Met Office,2023-01-10,06 ACCOMMODATION,CHIEF FINANCIAL OFFICER,EDF ENERGY CUSTOMERS PLC,474945,144016.69,523041202
BEIS,Met Office,2023-01-10,06 ACCOMMODATION,CHIEF FINANCIAL OFFICER,EDF ENERGY CUSTOMERS PLC,474948,144241.04,523041202
BEIS,Met Office,2023-01-10,06 ACCOMMODATION,CHIEF FINANCIAL OFFICER,EDF ENERGY CUSTOMERS PLC,474946,168570.24,523041202
BEIS,Met Office,2023-01-10,06 ACCOMMODATION,CHIEF FINANCIAL OFFICER,EDF ENERGY CUSTOMERS PLC,474947,502485.54,523041202
BEIS,Met Office,2023-01-11,11 SERVICES,CHIEF FINANCIAL OFFICER,EDSON TIGER LTD,474919,9750,166910983
BEIS,Met Office,2023-01-11,11 SERVICES,CHIEF FINANCIAL OFFICER,EIR,24513,53.94,4736919B
BEIS,Met Office,2023-01-05,03 STAFF COSTS T&S,CHIEF FINANCIAL OFFICER,ENTERPRISE RENT A CAR UK LTD,474950,557.91,215557314
BEIS,Met Office,2023-01-11,03 STAFF COSTS T&S,CHIEF FINANCIAL OFFICER,ENTERPRISE RENT A CAR UK LTD,475287,709.6,215557314
BEIS,Met Office,2023-01-19,03 STAFF COSTS T&S,CHIEF FINANCIAL OFFICER,ENTERPRISE RENT A CAR UK LTD,475597,1811.14,215557314
BEIS,Met Office,2023-01-05,03 STAFF COSTS T&S,CHIEF FINANCIAL OFFICER,ENTERPRISE RENT A CAR UK LTD,474932,1887.8,215557314
BEIS,Met Office,2023-01-25,03 STAFF COSTS T&S,CHIEF FINANCIAL OFFICER,ENTERPRISE RENT A CAR UK LTD,475769,2852.28,215557314
BEIS,Met Office,2023-01-31,03 STAFF COSTS T&S,CHIEF FINANCIAL OFFICER,ENTERPRISE RENT A CAR UK LTD,475924,3228.05,215557314
BEIS,Met Office,2023-01-12,06 ACCOMMODATION,CHIEF FINANCIAL OFFICER,EXCEL AV LIMITED,475298,586,994305005
BEIS,Met Office,2023-01-12,11 SERVICES,CHIEF FINANCIAL OFFICER,EXPONENTIAL-E,475360,373.76,GB798572653
BEIS,Met Office,2023-01-12,11 SERVICES,CHIEF FINANCIAL OFFICER,EXPONENTIAL-E,475263,2256.32,GB798572653
BEIS,Met Office,2023-01-05,11 SERVICES,CHIEF FINANCIAL OFFICER,FCDO SERVICES,474929,7622.55,888848729
BEIS,Met Office,2023-01-30,FIXTURE & FITTINGS,CHIEF FINANCIAL OFFICER,FMS INTERIOR SERVICES LTD,475836,2536,922056940
BEIS,Met Office,2023-01-13,FIXTURE & FITTINGS,CHIEF FINANCIAL OFFICER,FMS INTERIOR SERVICES LTD,475299,3340.28,922056940
BEIS,Met Office,2023-01-10,FIXTURE & FITTINGS,CHIEF FINANCIAL OFFICER,FMS INTERIOR SERVICES LTD,475064,18845,922056940
BEIS,Met Office,2023-01-23,11 SERVICES,CHIEF FINANCIAL OFFICER,FSI (FM SOLUTIONS) LTD,473288,1645,166398173
BEIS,Met Office,2023-01-18,11 SERVICES,CHIEF FINANCIAL OFFICER,GAMMA TELECOM LTD,475477,570.83,823820344
BEIS,Met Office,2023-01-12,11 SERVICES,CHIEF FINANCIAL OFFICER,GAMMA TELECOM LTD,475382,27105,823820344
BEIS,Met Office,2023-01-18,11 SERVICES,CHIEF FINANCIAL OFFICER,GB GROUP PLC,475468,68.84,539716218
BEIS,Met Office,2023-01-18,11 SERVICES,CHIEF FINANCIAL OFFICER,GB GROUP PLC,475467,342.4,539716218
BEIS,Met Office,2023-01-05,06 ACCOMMODATION,CHIEF FINANCIAL OFFICER,GREENSTAR CLEANERS LTD,474898,204.6,492376222
BEIS,Met Office,2023-01-30,06 ACCOMMODATION,CHIEF FINANCIAL OFFICER,GREENSTAR CLEANERS LTD,475840,204.6,492376222
BEIS,Met Office,2023-01-12,06 ACCOMMODATION,CHIEF FINANCIAL OFFICER,GRS BUILDING SERVICES SOUTH-WEST,475306,993.51,-
BEIS,Met Office,2023-01-18,11 SERVICES,CHIEF FINANCIAL OFFICER,INTEROUTE COMMUNICATIONS LIMITED,475599,7100,832 7071 39
BEIS,Met Office,2023-01-12,11 SERVICES,CHIEF FINANCIAL OFFICER,JERSEY TELECOM,475186,1287.21,NOTVATREG
BEIS,Met Office,2023-01-16,06 ACCOMMODATION,CHIEF FINANCIAL OFFICER,LAMBERT SMITH HAMPTON GROUP LTD CLIENT A/C,475486,111,NOVAT
BEIS,Met Office,2023-01-05,11 SERVICES,CHIEF FINANCIAL OFFICER,LICENCE BUREAU LTD,474915,29.6,820219467
BEIS,Met Office,2023-01-11,06 ACCOMMODATION,CHIEF FINANCIAL OFFICER,MAPP (PROPERTY MANAGEMENT) LTD,475245,210.13,725900735
BEIS,Met Office,2023-01-05,06 ACCOMMODATION,CHIEF FINANCIAL OFFICER,MAPP (PROPERTY MANAGEMENT) LTD,474936,4497.6,725900735
BEIS,Met Office,2023-01-05,11 SERVICES,CHIEF FINANCIAL OFFICER,MAWASEM LTD,474927,0,197694731
BEIS,Met Office,2023-01-05,11 SERVICES,CHIEF FINANCIAL OFFICER,MAWASEM LTD,474927,204472.83,197694731
BEIS,Met Office,2023-01-09,06 ACCOMMODATION,CHIEF FINANCIAL OFFICER,Mitie Landscapes Ltd,472199,-6019.2,GB 416 706 654
BEIS,Met Office,2023-01-09,06 ACCOMMODATION,CHIEF FINANCIAL OFFICER,Mitie Landscapes Ltd,474973,-2009.39,GB 416 706 654
BEIS,Met Office,2023-01-10,06 ACCOMMODATION,CHIEF FINANCIAL OFFICER,Mitie Landscapes Ltd,474974,-1356.32,GB 416 706 654
BEIS,Met Office,2023-01-09,06 ACCOMMODATION,CHIEF FINANCIAL OFFICER,Mitie Landscapes Ltd,474972,-1201.24,GB 416 706 654
BEIS,Met Office,2023-01-09,06 ACCOMMODATION,CHIEF FINANCIAL OFFICER,Mitie Landscapes Ltd,474729,518.3,GB 416 706 654
BEIS,Met Office,2023-01-10,06 ACCOMMODATION,CHIEF FINANCIAL OFFICER,Mitie Landscapes Ltd,474952,606.25,GB 416 706 654
BEIS,Met Office,2023-01-09,06 ACCOMMODATION,CHIEF FINANCIAL OFFICER,Mitie Landscapes Ltd,474730,812.5,GB 416 706 654
BEIS,Met Office,2023-01-09,06 ACCOMMODATION,CHIEF FINANCIAL OFFICER,Mitie Landscapes Ltd,474725,1200,GB 416 706 654
BEIS,Met Office,2023-01-10,06 ACCOMMODATION,CHIEF FINANCIAL OFFICER,Mitie Landscapes Ltd,468742,6815.38,GB 416 706 654
BEIS,Met Office,2023-01-10,06 ACCOMMODATION,CHIEF FINANCIAL OFFICER,Mitie Landscapes Ltd,469786,6815.59,GB 416 706 654
BEIS,Met Office,2023-01-10,06 ACCOMMODATION,CHIEF FINANCIAL OFFICER,Mitie Landscapes Ltd,470673,6815.59,GB 416 706 654
BEIS,Met Office,2023-01-09,06 ACCOMMODATION,CHIEF FINANCIAL OFFICER,Mitie Landscapes Ltd,474951,6815.59,GB 416 706 654
BEIS,Met Office,2023-01-13,11 SERVICES,CHIEF FINANCIAL OFFICER,MITIE SECURITY LTD,475191,77.16,416706654
BEIS,Met Office,2023-01-13,06 ACCOMMODATION,CHIEF FINANCIAL OFFICER,MITIE SECURITY LTD,475194,90,416706654
BEIS,Met Office,2023-01-11,06 ACCOMMODATION,CHIEF FINANCIAL OFFICER,MITIE SECURITY LTD,475193,1068.75,416706654
BEIS,Met Office,2023-01-13,11 SERVICES,CHIEF FINANCIAL OFFICER,MITIE SECURITY LTD,475192,1446.75,416706654
BEIS,Met Office,2023-01-05,11 SERVICES,CHIEF FINANCIAL OFFICER,MITIE SECURITY LTD,474923,3117,416706654
BEIS,Met Office,2023-01-05,11 SERVICES,CHIEF FINANCIAL OFFICER,MITIE SECURITY LTD,474923,7273.5,416706654
BEIS,Met Office,2023-01-05,11 SERVICES,CHIEF FINANCIAL OFFICER,MITIE SECURITY LTD,474922,20780.59,416706654
BEIS,Met Office,2023-01-10,06 ACCOMMODATION,CHIEF FINANCIAL OFFICER,MORAY COUNCIL,475066,388.57,663755506
BEIS,Met Office,2023-01-17,06 ACCOMMODATION,CHIEF FINANCIAL OFFICER,MORAY COUNCIL,475560,767.52,663755506
BEIS,Met Office,2023-01-18,06 ACCOMMODATION,CHIEF FINANCIAL OFFICER,MORAY COUNCIL,475600,3112.5,663755506
BEIS,Met Office,2023-01-16,06 ACCOMMODATION,CHIEF FINANCIAL OFFICER,MOUNT CHARLES GROUP LTD,475488,576.36,517116274
BEIS,Met Office,2023-01-30,13 MISCELLANEOUS,CHIEF FINANCIAL OFFICER,National Audit Office,475902,30,417632457
BEIS,Met Office,2023-01-12,11 SERVICES,CHIEF FINANCIAL OFFICER,National Audit Office,473567,69167,417632457
BEIS,Met Office,2023-01-06,11 SERVICES,CHIEF FINANCIAL OFFICER,NEOS NETWORKS LTD,474928,332.73,553769603
BEIS,Met Office,2023-01-11,11 SERVICES,CHIEF FINANCIAL OFFICER,NEOS NETWORKS LTD,475246,1167.75,553769603
BEIS,Met Office,2023-01-06,11 SERVICES,CHIEF FINANCIAL OFFICER,NEOS NETWORKS LTD,474928,1857,553769603
BEIS,Met Office,2023-01-05,13 MISCELLANEOUS,CHIEF FINANCIAL OFFICER,NORSCOTT VENDING SERVICES LTD,474908,77.7,751402071
BEIS,Met Office,2023-01-10,13 MISCELLANEOUS,CHIEF FINANCIAL OFFICER,NORSCOTT VENDING SERVICES LTD,475067,85,751402071
BEIS,Met Office,2023-01-18,11 SERVICES,CHIEF FINANCIAL OFFICER,POSTURITE (UK) LTD,475483,42.73,583565114
BEIS,Met Office,2023-01-13,11 SERVICES,CHIEF FINANCIAL OFFICER,POSTURITE (UK) LTD,475358,50,583565114
BEIS,Met Office,2023-01-13,11 SERVICES,CHIEF FINANCIAL OFFICER,POSTURITE (UK) LTD,475357,54.56,583565114
BEIS,Met Office,2023-01-05,11 SERVICES,CHIEF FINANCIAL OFFICER,POSTURITE (UK) LTD,474903,90.55,583565114
BEIS,Met Office,2023-01-05,11 SERVICES,CHIEF FINANCIAL OFFICER,POSTURITE (UK) LTD,474710,109.12,583565114
BEIS,Met Office,2023-01-05,11 SERVICES,CHIEF FINANCIAL OFFICER,POSTURITE (UK) LTD,474711,109.15,583565114
BEIS,Met Office,2023-01-09,11 SERVICES,CHIEF FINANCIAL OFFICER,POSTURITE (UK) LTD,475065,270.18,583565114
BEIS,Met Office,2023-01-18,11 SERVICES,CHIEF FINANCIAL OFFICER,POSTURITE (UK) LTD,475548,605.48,583565114
BEIS,Met Office,2023-01-09,11 SERVICES,CHIEF FINANCIAL OFFICER,POSTURITE (UK) LTD,475063,1028.59,583565114
BEIS,Met Office,2023-01-24,06 ACCOMMODATION,CHIEF FINANCIAL OFFICER,POWER NI ENERGY LTD,475697,88.19,617518142
BEIS,Met Office,2023-01-16,06 ACCOMMODATION,CHIEF FINANCIAL OFFICER,POWER NI ENERGY LTD,475479,635.27,617518142
BEIS,Met Office,2023-01-09,08 SOFTWARE LICENCES,CHIEF FINANCIAL OFFICER,PROACTIS LIMITED,475022,9870,GB893169286
BEIS,Met Office,2023-01-10,06 ACCOMMODATION,CHIEF FINANCIAL OFFICER,PUBLIC SUB ACCOUNT - HMG 4806,475156,1750,888805068
BEIS,Met Office,2023-01-16,06 ACCOMMODATION,CHIEF FINANCIAL OFFICER,PYRAMID CONSULTING LTD,475463,750,-
BEIS,Met Office,2023-01-31,03 STAFF COSTS T&S,CHIEF FINANCIAL OFFICER,RAINBOW CITY TAXIS,475936,10.38,724295039
BEIS,Met Office,2023-01-11,11 SERVICES,CHIEF FINANCIAL OFFICER,REDACTED � PERSONAL DATA,475136,0,729159704
BEIS,Met Office,2023-01-11,11 SERVICES,CHIEF FINANCIAL OFFICER,REDACTED � PERSONAL DATA,475138,0,729159704
BEIS,Met Office,2023-01-11,11 SERVICES,CHIEF FINANCIAL OFFICER,REDACTED � PERSONAL DATA,475139,0,729159704
BEIS,Met Office,2023-01-26,11 SERVICES,CHIEF FINANCIAL OFFICER,REDACTED � PERSONAL DATA,475835,0,729159704
BEIS,Met Office,2023-01-10,11 SERVICES,CHIEF FINANCIAL OFFICER,REDACTED � PERSONAL DATA,475137,42.48,729159704
BEIS,Met Office,2023-01-18,06 ACCOMMODATION,CHIEF FINANCIAL OFFICER,REDACTED � PERSONAL DATA,475058,520,-
BEIS,Met Office,2023-01-26,11 SERVICES,CHIEF FINANCIAL OFFICER,REDACTED � PERSONAL DATA,475835,884.15,729159704
BEIS,Met Office,2023-01-13,06 ACCOMMODATION,CHIEF FINANCIAL OFFICER,REDACTED � PERSONAL DATA,475300,4185.25,001874305
BEIS,Met Office,2023-01-18,06 ACCOMMODATION,CHIEF FINANCIAL OFFICER,REDACTED � PERSONAL DATA,475587,4500,N/A
BEIS,Met Office,2023-01-06,11 SERVICES,CHIEF FINANCIAL OFFICER,Reuters Ltd,475005,2370,397000555
BEIS,Met Office,2023-01-16,06 ACCOMMODATION,CHIEF FINANCIAL OFFICER,RIVER RIDGE,475462,146.06,176286083
BEIS,Met Office,2023-01-16,06 ACCOMMODATION,CHIEF FINANCIAL OFFICER,SAFESTORE LTD,475485,3430.33,722887607
BEIS,Met Office,2023-01-09,06 ACCOMMODATION,CHIEF FINANCIAL OFFICER,SATELLITE MEDIAPORT SERVICES LTD,475024,397.8,-
BEIS,Met Office,2023-01-19,06 ACCOMMODATION,CHIEF FINANCIAL OFFICER,Scottish Government,475657,12489,888842551
BEIS,Met Office,2023-01-10,06 ACCOMMODATION,CHIEF FINANCIAL OFFICER,Severn Trent Water Ltd,475145,14.33,486985565
BEIS,Met Office,2023-01-12,06 ACCOMMODATION,CHIEF FINANCIAL OFFICER,SHETLAND CLEANING SERVICES,475185,769.57,430028404
BEIS,Met Office,2023-01-20,06 ACCOMMODATION,CHIEF FINANCIAL OFFICER,SHETLAND CLEANING SERVICES,475696,769.57,430028404
BEIS,Met Office,2023-01-27,06 ACCOMMODATION,CHIEF FINANCIAL OFFICER,SHETLAND GRASSCUTTING,475845,1559.13,978367258
BEIS,Met Office,2023-01-17,06 ACCOMMODATION,CHIEF FINANCIAL OFFICER,South West Water Ltd,475559,62.58,236873674
BEIS,Met Office,2023-01-26,06 ACCOMMODATION,CHIEF FINANCIAL OFFICER,South West Water Ltd,475844,115.98,236873674
BEIS,Met Office,2023-01-06,06 ACCOMMODATION,CHIEF FINANCIAL OFFICER,South West Water Ltd,474909,849.59,236873674
BEIS,Met Office,2023-01-12,06 ACCOMMODATION,CHIEF FINANCIAL OFFICER,South West Water Ltd,475187,1005.42,236873674
BEIS,Met Office,2023-01-16,06 ACCOMMODATION,CHIEF FINANCIAL OFFICER,South West Water Ltd,475487,2051.31,236873674
BEIS,Met Office,2023-01-06,06 ACCOMMODATION,CHIEF FINANCIAL OFFICER,South West Water Ltd,474910,4444.64,236873674
BEIS,Met Office,2023-01-17,06 ACCOMMODATION,CHIEF FINANCIAL OFFICER,South West Water Ltd,475480,7022.67,236873674
BEIS,Met Office,2023-01-19,11 SERVICES,CHIEF FINANCIAL OFFICER,SURE SOUTH ATLANTIC LTD,475643,2124.59,NOVATREG
BEIS,Met Office,2023-01-19,11 SERVICES,CHIEF FINANCIAL OFFICER,SURE SOUTH ATLANTIC LTD (ST HELENA),475644,1650,30005
BEIS,Met Office,2023-01-12,11 SERVICES,CHIEF FINANCIAL OFFICER,TELEFONICA O2 UK LIMITED,475196,0,778603785
BEIS,Met Office,2023-01-12,11 SERVICES,CHIEF FINANCIAL OFFICER,TELEFONICA O2 UK LIMITED,475289,0,778603785
BEIS,Met Office,2023-01-06,11 SERVICES,CHIEF FINANCIAL OFFICER,TELEFONICA O2 UK LIMITED,474900,50.9,778603785
BEIS,Met Office,2023-01-12,11 SERVICES,CHIEF FINANCIAL OFFICER,TELEFONICA O2 UK LIMITED,475289,5314.95,778603785
BEIS,Met Office,2023-01-12,11 SERVICES,CHIEF FINANCIAL OFFICER,TELEFONICA O2 UK LIMITED,475196,6114.32,778603785
BEIS,Met Office,2023-01-25,11 SERVICES,CHIEF FINANCIAL OFFICER,TELIA FINLAND OYJ,24600,62.04,FI14756079
BEIS,Met Office,2023-01-25,11 SERVICES,CHIEF FINANCIAL OFFICER,TELIA FINLAND OYJ,24601,193.21,FI14756079
BEIS,Met Office,2023-01-13,06 ACCOMMODATION,CHIEF FINANCIAL OFFICER,TENNIE FACILITIES PROPERTY MANAGEMENT LTD,475100,207.15,982055803
BEIS,Met Office,2023-01-17,FIXTURE & FITTINGS,CHIEF FINANCIAL OFFICER,THORLUX LIGHTING,475524,741.83,GB 109 939 440
BEIS,Met Office,2023-01-12,06 ACCOMMODATION,CHIEF FINANCIAL OFFICER,TOP RANK CLEANING SERVICES LTD,475013,914,-
BEIS,Met Office,2023-01-23,06 ACCOMMODATION,CHIEF FINANCIAL OFFICER,TOTAL GAS & POWER LIMITED,472877,-20817.71,689638949
BEIS,Met Office,2023-01-23,06 ACCOMMODATION,CHIEF FINANCIAL OFFICER,TOTAL GAS & POWER LIMITED,472878,-19328.24,689638949
BEIS,Met Office,2023-01-23,06 ACCOMMODATION,CHIEF FINANCIAL OFFICER,TOTAL GAS & POWER LIMITED,474731,906.01,689638949
BEIS,Met Office,2023-01-23,06 ACCOMMODATION,CHIEF FINANCIAL OFFICER,TOTAL GAS & POWER LIMITED,475641,1762.81,689638949
BEIS,Met Office,2023-01-23,06 ACCOMMODATION,CHIEF FINANCIAL OFFICER,TOTAL GAS & POWER LIMITED,474732,18730.45,689638949
BEIS,Met Office,2023-01-13,11 SERVICES,CHIEF FINANCIAL OFFICER,Trinity House,475293,497,243120414
BEIS,Met Office,2023-01-13,11 SERVICES,CHIEF FINANCIAL OFFICER,Trinity House,475295,497,243120414
BEIS,Met Office,2023-01-12,06 ACCOMMODATION,CHIEF FINANCIAL OFFICER,Valuation Office Agency,475356,951.72,888848141
BEIS,Met Office,2023-01-12,06 ACCOMMODATION,CHIEF FINANCIAL OFFICER,Valuation Office Agency,475356,3580.28,888848141
BEIS,Met Office,2023-01-12,11 SERVICES,CHIEF FINANCIAL OFFICER,Vodafone Limited,475241,10.21,569953277
BEIS,Met Office,2023-01-12,11 SERVICES,CHIEF FINANCIAL OFFICER,Vodafone Limited,475240,471.6,569953277
BEIS,Met Office,2023-01-12,11 SERVICES,CHIEF FINANCIAL OFFICER,Vodafone Limited,475242,4149.77,569953277
BEIS,Met Office,2023-01-12,11 SERVICES,CHIEF FINANCIAL OFFICER,Vodafone Ltd,475243,370.6,569953277
BEIS,Met Office,2023-01-12,11 SERVICES,CHIEF FINANCIAL OFFICER,Vodafone Ltd,475244,371.87,569953277
BEIS,Met Office,2023-01-05,11 SERVICES,CHIEF FINANCIAL OFFICER,WEBEX COMMUNICATIONS UK LTD,474935,209.92,815974302
BEIS,Met Office,2023-01-31,11 SERVICES,CHIEF FINANCIAL OFFICER,WEBEX COMMUNICATIONS UK LTD,475906,209.92,815974302
BEIS,Met Office,2023-01-12,06 ACCOMMODATION,CHIEF FINANCIAL OFFICER,WEST LANCASHIRE BOROUGH COUNCIL,475150,132.16,-
BEIS,Met Office,2023-01-09,06 ACCOMMODATION,CHIEF FINANCIAL OFFICER,WINGFIELD DIGBY SETTLED ESTATE,475027,2600,GB 930669020
BEIS,Met Office,2023-01-24,11 SERVICES,CHIEF FINANCIAL OFFICER,WOMBLE BOND DICKINSON (UK) LLP,475771,4800,GB123393627
BEIS,Met Office,2023-01-23,11 SERVICES,CHIEF FINANCIAL OFFICER,WOMBLE BOND DICKINSON (UK) LLP,475723,13125,GB123393627
BEIS,Met Office,2023-01-11,11 SERVICES,CHIEF FINANCIAL OFFICER,WT CONSULTANCY (SW) LTD,475073,7350,223 4662 25
BEIS,Met Office,2023-01-19,06 ACCOMMODATION,CHIEF FINANCIAL OFFICER,XEIAD,472370,14905.15,811321091
BEIS,Met Office,2023-01-12,11 SERVICES,MARKETS,ACCELERATION EMARKETING,475366,3525.12,848940776
BEIS,Met Office,2023-01-09,11 SERVICES,MARKETS,ADOPSTAR,475053,1250,115036848
BEIS,Met Office,2023-01-20,12 INTERNATIONAL,MARKETS,APPLIED SATELLITE TECHNOLOGY SYSTEMS LTD,475664,35.05,720108683
BEIS,Met Office,2023-01-25,13 MISCELLANEOUS,MARKETS,ARTHUR J. GALLAGHER INSURANCE BROKERS LIMITED,475787,4000,GB484746209
BEIS,Met Office,2023-01-25,13 MISCELLANEOUS,MARKETS,ARTHUR J. GALLAGHER INSURANCE BROKERS LIMITED,475788,9520,GB484746209
BEIS,Met Office,2023-01-16,11 SERVICES,MARKETS,BJSS LIMITED,475352,1681.25,613295452
BEIS,Met Office,2023-01-03,11 SERVICES,MARKETS,BJSS LIMITED,474614,2425,613295452
BEIS,Met Office,2023-01-03,11 SERVICES,MARKETS,BJSS LIMITED,474616,6075,613295452
BEIS,Met Office,2023-01-20,11 SERVICES,MARKETS,BJSS LIMITED,475527,13110,613295452
BEIS,Met Office,2023-01-17,11 SERVICES,MARKETS,BRYERS LLP,474906,146.34,609635917
BEIS,Met Office,2023-01-04,11 SERVICES,MARKETS,BRYERS LLP,474102,4189.5,609635917
BEIS,Met Office,2023-01-11,11 SERVICES,MARKETS,CACI LTD,475189,55126.65,380609841
BEIS,Met Office,2023-01-27,11 SERVICES,MARKETS,CLAREMONT MARKETING COMMUNICATIONS LTD,475805,17898,429442584
BEIS,Met Office,2023-01-11,11 SERVICES,MARKETS,ECOMET,24412,255930.54,EXEMPT
BEIS,Met Office,2023-01-09,11 SERVICES,MARKETS,Esri (Uk) Ltd,475069,3309.17,787430791
BEIS,Met Office,2023-01-10,11 SERVICES,MARKETS,Esri (Uk) Ltd,475071,8179.17,787430791
BEIS,Met Office,2023-01-09,08 SOFTWARE LICENCES,MARKETS,Esri (Uk) Ltd,475016,16541.93,787430791
BEIS,Met Office,2023-01-16,11 SERVICES,MARKETS,FCDO,473760,33,888813560
BEIS,Met Office,2023-01-16,11 SERVICES,MARKETS,FCDO,473759,4283.03,888813560
BEIS,Met Office,2023-01-13,12 INTERNATIONAL,MARKETS,FOXSTONES TRAINING AND LEARNING,475305,2950,-
BEIS,Met Office,2023-01-10,06 ACCOMMODATION,MARKETS,HIGHLANDS & ISLANDS AIRPORTS LTD.,475133,7.59,945667772
BEIS,Met Office,2023-01-10,06 ACCOMMODATION,MARKETS,HIGHLANDS & ISLANDS AIRPORTS LTD.,475133,151.88,945667772
BEIS,Met Office,2023-01-12,12 INTERNATIONAL,MARKETS,IDEMS INTERNATIONAL COMMUNITY INTEREST CO,475381,2500,-
BEIS,Met Office,2023-01-10,12 INTERNATIONAL,MARKETS,IDEMS INTERNATIONAL COMMUNITY INTEREST CO,475135,26626.59,-
BEIS,Met Office,2023-01-11,11 SERVICES,MARKETS,"INTELLOVATIONS, LLC",10904,1757.86,-
BEIS,Met Office,2023-01-11,11 SERVICES,MARKETS,"INTELLOVATIONS, LLC",10905,4370.11,-
BEIS,Met Office,2023-01-04,11 SERVICES,MARKETS,INTERNATIONAL AIR TRANSPORT ASSOCIATION,10888,32704.29,107510570RT0001
BEIS,Met Office,2023-01-05,11 SERVICES,MARKETS,LHR BUSINESS SUPPORT CENTRE LTD,474272,13.75,927365404
BEIS,Met Office,2023-01-20,11 SERVICES,MARKETS,LHR BUSINESS SUPPORT CENTRE LTD,475526,62,927365404
BEIS,Met Office,2023-01-26,11 SERVICES,MARKETS,LHR BUSINESS SUPPORT CENTRE LTD,475770,62.65,927365404
BEIS,Met Office,2023-01-05,11 SERVICES,MARKETS,LHR BUSINESS SUPPORT CENTRE LTD,474273,133.3,927365404
BEIS,Met Office,2023-01-05,11 SERVICES,MARKETS,LHR BUSINESS SUPPORT CENTRE LTD,474270,150,927365404
BEIS,Met Office,2023-01-11,12 INTERNATIONAL,MARKETS,MACITECHSY SOLUTIONS,474921,1280,-
BEIS,Met Office,2023-01-25,12 INTERNATIONAL,MARKETS,MACITECHSY SOLUTIONS,475705,1280,-
BEIS,Met Office,2023-01-11,11 SERVICES,MARKETS,MARKET FOCUS CONSULTING LTD,475261,9900,759751578
BEIS,Met Office,2023-01-10,06 ACCOMMODATION,MARKETS,Northern Lighthouse Board,475094,529.93,268628908
BEIS,Met Office,2023-01-24,11 SERVICES,MARKETS,Ofcom,475767,8160,833012277
BEIS,Met Office,2023-01-11,11 SERVICES,MARKETS,OXALIS-SCOP,24436,9902.01,-
BEIS,Met Office,2023-01-24,11 SERVICES,MARKETS,PLOUGHSHARE INNOVATIONS,475658,22098,878305296
BEIS,Met Office,2023-01-31,11 SERVICES,MARKETS,PRESTIGE NETWORK LTD,475896,4400,529 1145 55
BEIS,Met Office,2023-01-11,11 SERVICES,MARKETS,REDACTED � PERSONAL DATA,475272,750,-
BEIS,Met Office,2023-01-09,11 SERVICES,MARKETS,REDACTED � PERSONAL DATA,474911,750,-
BEIS,Met Office,2023-01-11,12 INTERNATIONAL,MARKETS,REDACTED � PERSONAL DATA,10903,2861.63,-
BEIS,Met Office,2023-01-18,11 SERVICES,MARKETS,RIMES,10770,33650.43,-
BEIS,Met Office,2023-01-03,06 ACCOMMODATION,MARKETS,Royal National Lifeboat Institution,474687,12180,-
BEIS,Met Office,2023-01-18,11 SERVICES,MARKETS,SAS OCEAN DATA LAB,24424,32538.03,FR51 792 395 92
BEIS,Met Office,2023-01-10,06 ACCOMMODATION,MARKETS,SCOTTISH HYDRO-ELECTRIC,475147,45.42,553769603
BEIS,Met Office,2023-01-10,06 ACCOMMODATION,MARKETS,SCOTTISH HYDRO-ELECTRIC,475148,121.47,553769603
BEIS,Met Office,2023-01-12,11 SERVICES,MARKETS,SPOKE (INTERACTIVE) LTD,475362,700,840156451
BEIS,Met Office,2023-01-26,12 INTERNATIONAL,MARKETS,SWANTECH LOGISTICS LTD,475765,270,769332401
BEIS,Met Office,2023-01-06,12 INTERNATIONAL,MARKETS,SWANTECH LOGISTICS LTD,474934,450,769332401
BEIS,Met Office,2023-01-09,11 SERVICES,MARKETS,SWANTECH LOGISTICS LTD,474897,1920,769332401
BEIS,Met Office,2023-01-09,11 SERVICES,MARKETS,SWANTECH LOGISTICS LTD,475007,2704,769332401
BEIS,Met Office,2023-01-09,11 SERVICES,MARKETS,THE STRENGTHS PEOPLE LTD,474904,2800,206868488
BEIS,Met Office,2023-01-30,11 SERVICES,MARKETS,UKRI,475824,25143.1,GB287461957
BEIS,Met Office,2023-01-23,11 SERVICES,MARKETS,ULTRA ELECTRONICS LTD NUCLEAR CONTROL SYSTEMS,475727,1414.51,123340754
BEIS,Met Office,2023-01-11,11 SERVICES,MARKETS,ULTRA ELECTRONICS LTD NUCLEAR CONTROL SYSTEMS,475097,4926.81,123340754
BEIS,Met Office,2023-01-26,11 SERVICES,MARKETS,ULTRA ELECTRONICS LTD NUCLEAR CONTROL SYSTEMS,475757,8511.72,123340754
BEIS,Met Office,2023-01-26,11 SERVICES,MARKETS,ULTRA ELECTRONICS LTD NUCLEAR CONTROL SYSTEMS,475758,8511.72,123340754
BEIS,Met Office,2023-01-26,11 SERVICES,MARKETS,ULTRA ELECTRONICS LTD NUCLEAR CONTROL SYSTEMS,475759,8511.72,123340754
BEIS,Met Office,2023-01-16,11 SERVICES,MARKETS,ULTRA ELECTRONICS LTD NUCLEAR CONTROL SYSTEMS,475464,42408,123340754
BEIS,Met Office,2023-01-25,11 SERVICES,MARKETS,UNITED KINGDOM RESEARCH AND INNOVATION (UKRI),475792,1201.4,GB287461957
BEIS,Met Office,2023-01-05,06 ACCOMMODATION,MARKETS,Wessex Water Services Ltd,474912,350,-
BEIS,Met Office,2023-01-11,11 SERVICES,MARKETS,WORLDPAY (UK) LTD,474376,54.65,991280207
BEIS,Met Office,2023-01-11,11 SERVICES,MARKETS,WORLDPAY (UK) LTD,474375,233.52,991280207
BEIS,Met Office,2023-01-11,11 SERVICES,MARKETS,WORLDPAY (UK) LTD,475259,780.36,991280207
BEIS,Met Office,2023-01-11,11 SERVICES,MARKETS,WORLDPAY LTD,475131,25.55,991280207
BEIS,Met Office,2023-01-12,11 SERVICES,OFFICE OF THE CEO,OSBORNE CLARKE LLP,474902,11000,GB138187353
BEIS,Met Office,2023-01-19,13 MISCELLANEOUS,OFFICE OF THE CEO,THOMSON REUTERS (PROFESSIONAL) UK LTD,475275,11166.8,900548743
BEIS,Met Office,2023-01-20,11 SERVICES,OFFICE OF THE CEO,UNIVERSITY OF LAW LIMITED,475237,4100,GB151683901
BEIS,Met Office,2023-01-24,PAYE AND VAT,OTHER,AVIVA INSURANCE UK LIMITED,475732,0,105 437 300
BEIS,Met Office,2023-01-06,CYCLESCHEME,OTHER,EDENRED UK (CYCLESCHEME),474975,925.89,649 503 520
BEIS,Met Office,2023-01-27,PAYE AND VAT,OTHER,HMRC,475873,5956164.39,-
BEIS,Met Office,2023-01-18,13 MISCELLANEOUS,PEOPLE,BROADBEAN TECHNOLOGY LTD,474289,424.71,GB184088778
BEIS,Met Office,2023-01-18,13 MISCELLANEOUS,PEOPLE,BROADBEAN TECHNOLOGY LTD,474290,860.31,GB184088778
BEIS,Met Office,2023-01-18,13 MISCELLANEOUS,PEOPLE,BROADBEAN TECHNOLOGY LTD,474288,1634.59,GB184088778
BEIS,Met Office,2023-01-18,13 MISCELLANEOUS,PEOPLE,BROADBEAN TECHNOLOGY LTD,474291,1720.62,GB184088778
BEIS,Met Office,2023-01-11,08 SOFTWARE LICENCES,PEOPLE,CATALYST IT,475183,0.1,978169262
BEIS,Met Office,2023-01-11,08 SOFTWARE LICENCES,PEOPLE,CATALYST IT,475183,1635.73,978169262
BEIS,Met Office,2023-01-13,11 SERVICES,PEOPLE,Cipd,475132,2.15,756 202 737.
BEIS,Met Office,2023-01-13,11 SERVICES,PEOPLE,Cipd,475132,590,756 202 737.
BEIS,Met Office,2023-01-16,11 SERVICES,PEOPLE,CIVICA UK LIMITED,475460,7503.5,391171065
BEIS,Met Office,2023-01-05,13 MISCELLANEOUS,PEOPLE,EDENRED - CHILDCARE VOUCHERS,474499,-243,649 503 520
BEIS,Met Office,2023-01-05,13 MISCELLANEOUS,PEOPLE,EDENRED - CHILDCARE VOUCHERS,474500,-243,649 503 520
BEIS,Met Office,2023-01-05,13 MISCELLANEOUS,PEOPLE,EDENRED - CHILDCARE VOUCHERS,474938,9656.5,649 503 520
BEIS,Met Office,2023-01-17,13 MISCELLANEOUS,PEOPLE,EDENRED I&M (IRS VOUCHERS),475377,58981.5,649 503 520
BEIS,Met Office,2023-01-17,13 MISCELLANEOUS,PEOPLE,EDENRED I&M (IRS VOUCHERS),475503,60659.4,649 503 520
BEIS,Met Office,2023-01-09,11 SERVICES,PEOPLE,FLYFORM LTD,475051,1990,237333808
BEIS,Met Office,2023-01-09,11 SERVICES,PEOPLE,HEALTH ASSURED LIMITED,475054,1120,927 5242 17
BEIS,Met Office,2023-01-05,04 CONTRACTORS,PEOPLE,MATRIX SCM LIMITED,474955,129767.84,249 5734 68
BEIS,Met Office,2023-01-10,04 CONTRACTORS,PEOPLE,MATRIX SCM LIMITED,475134,170620.64,249 5734 68
BEIS,Met Office,2023-01-18,04 CONTRACTORS,PEOPLE,MATRIX SCM LIMITED,475459,180080.91,249 5734 68
BEIS,Met Office,2023-01-26,04 CONTRACTORS,PEOPLE,MATRIX SCM LIMITED,475841,204742.78,249 5734 68
BEIS,Met Office,2023-01-20,04 CONTRACTORS,PEOPLE,MATRIX SCM LIMITED,475698,236101.72,249 5734 68
BEIS,Met Office,2023-01-05,04 CONTRACTORS,PEOPLE,MATRIX SCM LIMITED,474913,255641.63,249 5734 68
BEIS,Met Office,2023-01-25,11 SERVICES,PEOPLE,PLURALSIGHT,10900,3391.46,EU826020045
BEIS,Met Office,2023-01-16,11 SERVICES,PEOPLE,REDACTED � PERSONAL DATA,475375,825,143043312
BEIS,Met Office,2023-01-16,11 SERVICES,PEOPLE,REDACTED � PERSONAL DATA,475376,1260,143043312
BEIS,Met Office,2023-01-11,13 MISCELLANEOUS,PEOPLE,RESTORE RECORDS MANAGEMENT,475288,13.18,843 863011
BEIS,Met Office,2023-01-05,11 SERVICES,PEOPLE,RESULTS CATALYSTS LTD,474931,1200,811 9181 42
BEIS,Met Office,2023-01-09,11 SERVICES,PEOPLE,SPOCE,474894,80,619 8641 07
BEIS,Met Office,2023-01-09,11 SERVICES,PEOPLE,SPOCE,474894,950,619 8641 07
BEIS,Met Office,2023-01-09,11 SERVICES,PEOPLE,SPOCE,474894,3900,619 8641 07
BEIS,Met Office,2023-01-09,11 SERVICES,PEOPLE,SPOCE,474894,7735,619 8641 07
BEIS,Met Office,2023-01-24,11 SERVICES,PEOPLE,SPRINGPOD / THE EDUCATION HUB GROUP LTD,475772,9810,GB287276850
BEIS,Met Office,2023-01-10,11 SERVICES,PEOPLE,SWANTECH LOGISTICS LTD,474896,900,769332401
BEIS,Met Office,2023-01-10,11 SERVICES,PEOPLE,SWANTECH LOGISTICS LTD,475006,900,769332401
BEIS,Met Office,2023-01-20,11 SERVICES,PEOPLE,THE STRENGTHS PEOPLE LTD,475673,2461,206868488
BEIS,Met Office,2023-01-23,08 SOFTWARE LICENCES,PEOPLE,THYMOMETRICS LIMITED,475693,705.6,GB 154 4517 15
BEIS,Met Office,2023-01-05,11 SERVICES,PEOPLE,TP HEALTH LTD,474891,1430,883064608
BEIS,Met Office,2023-01-09,11 SERVICES,PEOPLE,TP HEALTH LTD,474889,1539,883064608
BEIS,Met Office,2023-01-10,11 SERVICES,PEOPLE,TRICKBOX,474660,5000,990276003
BEIS,Met Office,2023-01-23,11 SERVICES,PEOPLE,TSG TRAINING LTD,475639,7767,GB 279 0047 91
BEIS,Met Office,2023-01-26,11 SERVICES,PEOPLE,UNIFROG,475794,4600,160485806
BEIS,Met Office,2023-01-19,13 MISCELLANEOUS,PEOPLE,YOTI LTD,475266,54.9,GB199947617
BEIS,Met Office,2023-01-09,11 SERVICES,PEOPLE,YOUGOV PLC,475010,3775,991228109
BEIS,Met Office,2023-01-26,11 SERVICES,PROGRAMMES,BAE SYSTEMS APPLIED INTELLIGENCE LIMITED,475469,1,GB641407169
BEIS,Met Office,2023-01-26,11 SERVICES,PROGRAMMES,BAE SYSTEMS APPLIED INTELLIGENCE LIMITED,475469,1,GB641407169
BEIS,Met Office,2023-01-26,11 SERVICES,PROGRAMMES,BAE SYSTEMS APPLIED INTELLIGENCE LIMITED,475469,1890.49,GB641407169
BEIS,Met Office,2023-01-10,06 ACCOMMODATION,PROGRAMMES,Belfast International Airport Ltd,475141,2187.5,617777601
BEIS,Met Office,2023-01-16,11 SERVICES,PROGRAMMES,BJSS LIMITED,475354,3125,613295452
BEIS,Met Office,2023-01-19,11 SERVICES,PROGRAMMES,BJSS LIMITED,475523,18240.88,613295452
BEIS,Met Office,2023-01-17,11 SERVICES,PROGRAMMES,BJSS LIMITED,475520,37375,613295452
BEIS,Met Office,2023-01-16,11 SERVICES,PROGRAMMES,BJSS LIMITED,475353,38125,613295452
BEIS,Met Office,2023-01-19,11 SERVICES,PROGRAMMES,BJSS LIMITED,475523,55771.62,613295452
BEIS,Met Office,2023-01-10,11 SERVICES,PROGRAMMES,Cgi It Uk Limited,474131,14561.64,232615194
BEIS,Met Office,2023-01-10,11 SERVICES,PROGRAMMES,Cgi It Uk Limited,474130,26425,232615194
BEIS,Met Office,2023-01-10,11 SERVICES,PROGRAMMES,Cgi It Uk Limited,474130,29123.9,232615194
BEIS,Met Office,2023-01-10,11 SERVICES,PROGRAMMES,Cgi It Uk Limited,474131,49702,232615194
BEIS,Met Office,2023-01-09,05 CONSULTANTS,PROGRAMMES,CREDERA LTD,474886,2074.62,GB 532 4951-48
BEIS,Met Office,2023-01-09,05 CONSULTANTS,PROGRAMMES,CREDERA LTD,474885,73273,GB 532 4951-48
BEIS,Met Office,2023-01-11,06 ACCOMMODATION,PROGRAMMES,DINNET & KINORD ESTATES,475264,4132.72,267044752
BEIS,Met Office,2023-01-11,11 SERVICES,PROGRAMMES,Esri (Uk) Ltd,475070,13444.67,787430791
BEIS,Met Office,2023-01-16,11 SERVICES,PROGRAMMES,FLYFORM LTD,475050,13805.63,237333808
BEIS,Met Office,2023-01-10,11 SERVICES,PROGRAMMES,GLOBAL ACTION PLAN,474371,3820,GB 625 994 009
BEIS,Met Office,2023-01-26,11 SERVICES,PROGRAMMES,GREAT PLACE TO WORK UK LTD,474038,22595,894277473
BEIS,Met Office,2023-01-12,11 SERVICES,PROGRAMMES,LAFOSSE ASSOCIATES,475274,12750,GB 360026537
BEIS,Met Office,2023-01-04,11 SERVICES,PROGRAMMES,LAFOSSE ASSOCIATES,473328,15750,GB 360026537
BEIS,Met Office,2023-01-11,11 SERVICES,PROGRAMMES,MADE TECH,475095,64612.5,938565184
BEIS,Met Office,2023-01-25,11 SERVICES,PROGRAMMES,MAURITIUS METEOROLOGICAL SOCIETY,474943,1000,-
BEIS,Met Office,2023-01-25,11 SERVICES,PROGRAMMES,MAURITIUS METEOROLOGICAL SOCIETY,474943,8500,-
BEIS,Met Office,2023-01-31,11 SERVICES,PROGRAMMES,Microsoft Ltd,475256,263636.46,724594615
BEIS,Met Office,2023-01-31,11 SERVICES,PROGRAMMES,Microsoft Ltd,475257,315189.31,724594615
BEIS,Met Office,2023-01-31,11 SERVICES,PROGRAMMES,NOC INNOVATIONS LIMITED,475907,249966,-
BEIS,Met Office,2023-01-10,11 SERVICES,PROGRAMMES,ROBIN�S TRADING COMPANY LTD,474954,12000,384909158
BEIS,Met Office,2023-01-09,11 SERVICES,PROGRAMMES,ROWE IT LTD,475055,12750,924964394
BEIS,Met Office,2023-01-09,11 SERVICES,PROGRAMMES,ROWE IT LTD,475057,82412.5,924964394
BEIS,Met Office,2023-01-09,11 SERVICES,PROGRAMMES,ROWE IT LTD,475056,141706.25,924964394
BEIS,Met Office,2023-01-11,13 MISCELLANEOUS,PROGRAMMES,SPRINGER CUSTOMER SERVICE CENTER GMBH,24422,1963.12,209719094
BEIS,Met Office,2023-01-23,06 ACCOMMODATION,PROGRAMMES,TOTAL GAS & POWER LIMITED,475642,31313.26,689638949
BEIS,Met Office,2023-01-30,11 SERVICES,PROGRAMMES,UK ATOMIC ENERGY AUTHORITY,475885,31875,GB570101391
BEIS,Met Office,2023-01-18,11 SERVICES,PROGRAMMES,University College London,475521,67428.2,524371168
BEIS,Met Office,2023-01-12,11 SERVICES,PROGRAMMES,University Of Bristol,475290,2293,991261800
BEIS,Met Office,2023-01-23,11 SERVICES,PROGRAMMES,University Of Exeter,475637,25000,142047795
BEIS,Met Office,2023-01-20,11 SERVICES,PROGRAMMES,University Of Leeds,475592,-17502.46,613451470
BEIS,Met Office,2023-01-16,11 SERVICES,PROGRAMMES,University Of Reading,474876,-10743.31,200012659
BEIS,Met Office,2023-01-31,11 SERVICES,PROGRAMMES,University Of Reading,475883,44705.76,200012659
BEIS,Met Office,2023-01-16,11 SERVICES,PROGRAMMES,University Of Reading,473294,60219.17,200012659
BEIS,Met Office,2023-01-16,11 SERVICES,PROGRAMMES,University Of Reading,475182,60219.17,200012659
BEIS,Met Office,2023-01-31,11 SERVICES,PROGRAMMES,University Of Reading,475882,92675.4,200012659
BEIS,Met Office,2023-01-26,13 MISCELLANEOUS,SCIENCE,AB MULTIMEDIA LTD,475367,1850,849333502
BEIS,Met Office,2023-01-24,07 EQUIPMENT,SCIENCE,BOB'S MACHINE SHOP,475742,200,-
BEIS,Met Office,2023-01-11,13 MISCELLANEOUS,SCIENCE,CLARIVATE ANALYTICS (US) LLC,10871,113708.11,EU826000773
BEIS,Met Office,2023-01-25,11 SERVICES,SCIENCE,FLIR SYSTEMS  LTD,474705,2559,335104592
BEIS,Met Office,2023-01-12,11 SERVICES,SCIENCE,Imperial College,474717,57500,649926678
BEIS,Met Office,2023-01-11,13 MISCELLANEOUS,SCIENCE,SPRINGER CUSTOMER SERVICE CENTER GMBH,24422,17668.08,209719094
BEIS,Met Office,2023-01-24,13 MISCELLANEOUS,SCIENCE,University Of Leeds,475762,1371.6,613451470
BEIS,Met Office,2023-01-05,11 SERVICES,SCIENCE,University Of Leeds,474907,83333.25,613451470
BEIS,Met Office,2023-01-20,11 SERVICES,SCIENCE,University Of Leeds,475694,83333.25,613451470
BEIS,Met Office,2023-01-18,13 MISCELLANEOUS,SCIENCE,University Of Oxford,475595,333.33,125506730
BEIS,Met Office,2023-01-19,13 MISCELLANEOUS,SCIENCE,University Of Oxford,475596,333.33,125506730
BEIS,Met Office,2023-01-19,13 MISCELLANEOUS,SCIENCE,University Of Oxford,475589,1000,125506730
BEIS,Met Office,2023-01-17,13 MISCELLANEOUS,SCIENCE,University Of Reading,475372,333.33,200012659
BEIS,Met Office,2023-01-19,13 MISCELLANEOUS,SCIENCE,University Of Reading,475481,333.34,200012659
BEIS,Met Office,2023-01-17,13 MISCELLANEOUS,SCIENCE,University Of Reading,475482,1000,200012659
BEIS,Met Office,2023-01-30,13 MISCELLANEOUS,SCIENCE,University Of Reading,475809,2368,200012659
BEIS,Met Office,2023-01-26,11 SERVICES,SCIENCE,University Of Reading,474707,12500,200012659
BEIS,Met Office,2023-01-12,11 SERVICES,SERVICES,ADAM PHONES LTD,475273,85.5,538877093
BEIS,Met Office,2023-01-05,11 SERVICES,SERVICES,ADAM PHONES LTD,474892,88.35,538877093
BEIS,Met Office,2023-01-05,11 SERVICES,SERVICES,ADAM PHONES LTD,474893,88.35,538877093
BEIS,Met Office,2023-01-16,11 SERVICES,SERVICES,ADAM PHONES LTD,475359,88.35,538877093
BEIS,Met Office,2023-01-04,10 EQUIPMENT MAINTENANCE,SERVICES,ADOLF THIES GMBH & CO. KG GOTTINGEN,24408,239.32,-
BEIS,Met Office,2023-01-04,10 EQUIPMENT MAINTENANCE,SERVICES,ADOLF THIES GMBH & CO. KG GOTTINGEN,24408,2937.15,-
BEIS,Met Office,2023-01-11,03 STAFF COSTS T&S,SERVICES,AIRPORT CAR RENTALS LTD,475265,320,-
BEIS,Met Office,2023-01-03,11 SERVICES,SERVICES,APPLIED SATELLITE TECHNOLOGY SYSTEMS LTD,474746,34.26,720108683
BEIS,Met Office,2023-01-20,11 SERVICES,SERVICES,APPLIED SATELLITE TECHNOLOGY SYSTEMS LTD,475669,70.09,720108683
BEIS,Met Office,2023-01-20,11 SERVICES,SERVICES,APPLIED SATELLITE TECHNOLOGY SYSTEMS LTD,475671,119.05,720108683
BEIS,Met Office,2023-01-20,11 SERVICES,SERVICES,APPLIED SATELLITE TECHNOLOGY SYSTEMS LTD,475668,145.4,720108683
BEIS,Met Office,2023-01-06,11 SERVICES,SERVICES,APPLIED SATELLITE TECHNOLOGY SYSTEMS LTD,472762,148.33,720108683
BEIS,Met Office,2023-01-20,11 SERVICES,SERVICES,APPLIED SATELLITE TECHNOLOGY SYSTEMS LTD,475670,156,720108683
BEIS,Met Office,2023-01-20,11 SERVICES,SERVICES,APPLIED SATELLITE TECHNOLOGY SYSTEMS LTD,475663,322.29,720108683
BEIS,Met Office,2023-01-20,11 SERVICES,SERVICES,APPLIED SATELLITE TECHNOLOGY SYSTEMS LTD,475665,2285.68,720108683
BEIS,Met Office,2023-01-20,11 SERVICES,SERVICES,APPLIED SATELLITE TECHNOLOGY SYSTEMS LTD,475666,2767.15,720108683
BEIS,Met Office,2023-01-20,11 SERVICES,SERVICES,APPLIED SATELLITE TECHNOLOGY SYSTEMS LTD,475667,6846.57,720108683
BEIS,Met Office,2023-01-18,11 SERVICES,SERVICES,ARNOLD CLARK FINANCE LIMITED,475582,4673.16,GB334331879
BEIS,Met Office,2023-01-23,13 MISCELLANEOUS,SERVICES,AVIVA INSURANCE UK LIMITED,475731,65,105 437 300
BEIS,Met Office,2023-01-24,13 MISCELLANEOUS,SERVICES,AVIVA INSURANCE UK LIMITED,475732,1765.55,105 437 300
BEIS,Met Office,2023-01-10,11 SERVICES,SERVICES,Boc Ltd,475002,16534.36,226556555
BEIS,Met Office,2023-01-09,03 STAFF COSTS T&S,SERVICES,CHARLIE'S TRAVEL LTD,475028,202.46,783848277
BEIS,Met Office,2023-01-25,03 STAFF COSTS T&S,SERVICES,CHARLIE'S TRAVEL LTD,475793,380.84,783848277
BEIS,Met Office,2023-01-09,03 STAFF COSTS T&S,SERVICES,CHARLIE'S TRAVEL LTD,474918,395.62,783848277
BEIS,Met Office,2023-01-09,03 STAFF COSTS T&S,SERVICES,CHARLIE'S TRAVEL LTD,475028,1120.86,783848277
BEIS,Met Office,2023-01-09,03 STAFF COSTS T&S,SERVICES,CHARLIE'S TRAVEL LTD,475028,1287.61,783848277
BEIS,Met Office,2023-01-23,07 EQUIPMENT,SERVICES,CLARKE LANE ENGINEERING LTD,475728,15,412068487
BEIS,Met Office,2023-01-23,07 EQUIPMENT,SERVICES,CLARKE LANE ENGINEERING LTD,475728,52.4,412068487
BEIS,Met Office,2023-01-23,07 EQUIPMENT,SERVICES,CLARKE LANE ENGINEERING LTD,475728,148.8,412068487
BEIS,Met Office,2023-01-23,07 EQUIPMENT,SERVICES,CLARKE LANE ENGINEERING LTD,475728,227.1,412068487
BEIS,Met Office,2023-01-18,07 EQUIPMENT,SERVICES,CLARKE LANE ENGINEERING LTD,475465,239.1,412068487
BEIS,Met Office,2023-01-18,07 EQUIPMENT,SERVICES,CLARKE LANE ENGINEERING LTD,475465,291,412068487
BEIS,Met Office,2023-01-18,07 EQUIPMENT,SERVICES,CLARKE LANE ENGINEERING LTD,475465,291,412068487
BEIS,Met Office,2023-01-18,07 EQUIPMENT,SERVICES,CLARKE LANE ENGINEERING LTD,475465,613.2,412068487
BEIS,Met Office,2023-01-03,11 SERVICES,SERVICES,CLOUDREACH EUROPE LIMITED,474552,7300,978187168
BEIS,Met Office,2023-01-11,11 SERVICES,SERVICES,CLOUDREACH EUROPE LIMITED,475238,7300,978187168
BEIS,Met Office,2023-01-17,08 SOFTWARE LICENCES,SERVICES,COGNIZANT WORLDWIDE LIMITED,475296,9977.25,123382928
BEIS,Met Office,2023-01-25,10 EQUIPMENT MAINTENANCE,SERVICES,COMMUNICATIONS & POWER IND. EUROPE LTD,10848,741.84,664103850
BEIS,Met Office,2023-01-25,10 EQUIPMENT MAINTENANCE,SERVICES,COMMUNICATIONS & POWER IND. EUROPE LTD,10858,1483.13,664103850
BEIS,Met Office,2023-01-25,10 EQUIPMENT MAINTENANCE,SERVICES,COMMUNICATIONS & POWER IND. EUROPE LTD,10858,1483.13,664103850
BEIS,Met Office,2023-01-25,10 EQUIPMENT MAINTENANCE,SERVICES,COMMUNICATIONS & POWER IND. EUROPE LTD,10858,1483.13,664103850
BEIS,Met Office,2023-01-25,10 EQUIPMENT MAINTENANCE,SERVICES,COMMUNICATIONS & POWER IND. EUROPE LTD,10858,1483.13,664103850
BEIS,Met Office,2023-01-25,10 EQUIPMENT MAINTENANCE,SERVICES,COMMUNICATIONS & POWER IND. EUROPE LTD,10858,1483.14,664103850
BEIS,Met Office,2023-01-25,10 EQUIPMENT MAINTENANCE,SERVICES,COMMUNICATIONS & POWER IND. EUROPE LTD,10847,1483.67,664103850
BEIS,Met Office,2023-01-25,10 EQUIPMENT MAINTENANCE,SERVICES,COMMUNICATIONS & POWER IND. EUROPE LTD,10848,1483.67,664103850
BEIS,Met Office,2023-01-25,10 EQUIPMENT MAINTENANCE,SERVICES,COMMUNICATIONS & POWER IND. EUROPE LTD,10848,1483.67,664103850
BEIS,Met Office,2023-01-25,10 EQUIPMENT MAINTENANCE,SERVICES,COMMUNICATIONS & POWER IND. EUROPE LTD,10848,1483.67,664103850
BEIS,Met Office,2023-01-31,07 EQUIPMENT,SERVICES,COMPUTACENTER (UK) LTD,475887,7590.8,490334648
BEIS,Met Office,2023-01-10,13 MISCELLANEOUS,SERVICES,DBS FINANCE RECEIPTS CTS,474895,30,888805068
BEIS,Met Office,2023-01-10,03 STAFF COSTS T&S,SERVICES,DBS FINANCE RECEIPTS CTS,474925,4015,888805068
BEIS,Met Office,2023-01-11,03 STAFF COSTS T&S,SERVICES,DBS FINANCE RECEIPTS CTS,475178,4818,888805068
BEIS,Met Office,2023-01-05,STOCK,SERVICES,EQUINOX INSTRUMENTS LTD,474741,0,865954274
BEIS,Met Office,2023-01-05,11 SERVICES,SERVICES,EQUINOX INSTRUMENTS LTD,474741,25,865954274
BEIS,Met Office,2023-01-19,11 SERVICES,SERVICES,EQUINOX INSTRUMENTS LTD,474259,120,865954274
BEIS,Met Office,2023-01-19,10 EQUIPMENT MAINTENANCE,SERVICES,EQUINOX INSTRUMENTS LTD,474259,1200,865954274
BEIS,Met Office,2023-01-05,TRADE CREDITORS,SERVICES,EQUINOX INSTRUMENTS LTD,474741,3950,865954274
BEIS,Met Office,2023-01-26,03 STAFF COSTS T&S,SERVICES,FALKLAND ISLAND COMPANY LTD,475802,700,N/A
BEIS,Met Office,2023-01-26,03 STAFF COSTS T&S,SERVICES,FALKLAND ISLAND COMPANY LTD,475803,700,N/A
BEIS,Met Office,2023-01-26,03 STAFF COSTS T&S,SERVICES,FALKLAND ISLAND COMPANY LTD,475804,700,N/A
BEIS,Met Office,2023-01-10,11 SERVICES,SERVICES,FCDO SERVICES,474930,1650,888848729
BEIS,Met Office,2023-01-30,STOCK,SERVICES,GH ZEAL LTD,475583,0,648929087
BEIS,Met Office,2023-01-30,11 SERVICES,SERVICES,GH ZEAL LTD,475583,17.5,648929087
BEIS,Met Office,2023-01-30,TRADE CREDITORS,SERVICES,GH ZEAL LTD,475583,8970,648929087
BEIS,Met Office,2023-01-09,03 STAFF COSTS T&S,SERVICES,HCR LTD,474880,8263,733 7205 46
BEIS,Met Office,2023-01-19,13 MISCELLANEOUS,SERVICES,IMAGETEK SYSTEMS LTD,475652,3041.61,GB586331424
BEIS,Met Office,2023-01-10,INFORMATION TECHNOLOGY,SERVICES,INMARSAT SOLUTIONS (CANADA) INC,475017,41.26,766144223
BEIS,Met Office,2023-01-10,INFORMATION TECHNOLOGY,SERVICES,INMARSAT SOLUTIONS (CANADA) INC,475018,41.26,766144223
BEIS,Met Office,2023-01-10,INFORMATION TECHNOLOGY,SERVICES,INMARSAT SOLUTIONS (CANADA) INC,475019,82.52,766144223
BEIS,Met Office,2023-01-10,INFORMATION TECHNOLOGY,SERVICES,INMARSAT SOLUTIONS (CANADA) INC,475020,2144.16,766144223
BEIS,Met Office,2023-01-20,11 SERVICES,SERVICES,LHR BUSINESS SUPPORT CENTRE LTD,475181,300,927365404
BEIS,Met Office,2023-01-25,11 SERVICES,SERVICES,LINKWAVE TECHNOLOGIES LTD,475653,12881.12,715940432
BEIS,Met Office,2023-01-11,11 SERVICES,SERVICES,MADE TECH,475096,27087.5,938565184
BEIS,Met Office,2023-01-11,11 SERVICES,SERVICES,MADE TECH,475098,156762.5,938565184
BEIS,Met Office,2023-01-20,11 SERVICES,SERVICES,MILEXIA UK LTD,475519,60,537664613
BEIS,Met Office,2023-01-20,10 EQUIPMENT MAINTENANCE,SERVICES,MILEXIA UK LTD,475519,190,537664613
BEIS,Met Office,2023-01-20,10 EQUIPMENT MAINTENANCE,SERVICES,MILEXIA UK LTD,475519,190,537664613
BEIS,Met Office,2023-01-20,10 EQUIPMENT MAINTENANCE,SERVICES,MILEXIA UK LTD,475519,190,537664613
BEIS,Met Office,2023-01-10,13 MISCELLANEOUS,SERVICES,Munro Instruments Ltd,475142,59,977793930
BEIS,Met Office,2023-01-26,13 MISCELLANEOUS,SERVICES,Munro Instruments Ltd,475838,59,977793930
BEIS,Met Office,2023-01-26,07 EQUIPMENT,SERVICES,Munro Instruments Ltd,475838,980,977793930
BEIS,Met Office,2023-01-31,10 EQUIPMENT MAINTENANCE,SERVICES,Munro Instruments Ltd,475913,1510,977793930
BEIS,Met Office,2023-01-10,10 EQUIPMENT MAINTENANCE,SERVICES,Munro Instruments Ltd,475142,1956.92,977793930
BEIS,Met Office,2023-01-31,COMPUTER SOFTWARE,SERVICES,NOMENSA,474688,866.61,GB771727411
BEIS,Met Office,2023-01-18,11 SERVICES,SERVICES,NSSL GLOBAL LTD,10897,57.23,725151948
BEIS,Met Office,2023-01-18,11 SERVICES,SERVICES,NSSL GLOBAL LTD,10898,73.58,725151948
BEIS,Met Office,2023-01-26,13 MISCELLANEOUS,SERVICES,PETERS & MAY GLOBAL LOGISTICS LTD,475808,75,995183276
BEIS,Met Office,2023-01-18,10 EQUIPMENT MAINTENANCE,SERVICES,RAYMETRICS S.A. (GREEK ACCOUNT),24425,1349.4,EL999641589
BEIS,Met Office,2023-01-26,11 SERVICES,SERVICES,REDACTED � PERSONAL DATA,475829,123.04,-
BEIS,Met Office,2023-01-18,11 SERVICES,SERVICES,SIMILARWEBB UK LTD,10899,47421.23,GB174984654
BEIS,Met Office,2023-01-23,11 SERVICES,SERVICES,SKYGUARD LTD T/A PEOPLESAFE,475195,782.01,285808854
BEIS,Met Office,2023-01-13,11 SERVICES,SERVICES,SOFTWIRE TECHNOLOGY LIMITED,475301,4200,752 1253 57
BEIS,Met Office,2023-01-23,11 SERVICES,SERVICES,SPECIALIST COMPUTER CENTRES,475725,23000,313651680
BEIS,Met Office,2023-01-11,13 MISCELLANEOUS,SERVICES,SPRINGER CUSTOMER SERVICE CENTER GMBH,24422,19631.2,209719094
BEIS,Met Office,2023-01-09,11 SERVICES,SERVICES,THE STRENGTHS PEOPLE LTD,474881,1800,206868488
BEIS,Met Office,2023-01-12,PLANT AND EQUIPMENT,SERVICES,TOYOTA GB,475378,-346.01,GB 679977144
BEIS,Met Office,2023-01-12,PLANT AND EQUIPMENT,SERVICES,TOYOTA GB,475378,1,GB 679977144
BEIS,Met Office,2023-01-19,PLANT AND EQUIPMENT,SERVICES,TOYOTA GB,475379,55,GB 679977144
BEIS,Met Office,2023-01-12,PLANT AND EQUIPMENT,SERVICES,TOYOTA GB,475378,110,GB 679977144
BEIS,Met Office,2023-01-19,PLANT AND EQUIPMENT,SERVICES,TOYOTA GB,475379,290,GB 679977144
BEIS,Met Office,2023-01-12,PLANT AND EQUIPMENT,SERVICES,TOYOTA GB,475378,580,GB 679977144
BEIS,Met Office,2023-01-19,PLANT AND EQUIPMENT,SERVICES,TOYOTA GB,475379,23554.97,GB 679977144
BEIS,Met Office,2023-01-12,PLANT AND EQUIPMENT,SERVICES,TOYOTA GB,475378,23554.98,GB 679977144
BEIS,Met Office,2023-01-11,11 SERVICES,SERVICES,Trinity House,475294,1862.1,243120414
BEIS,Met Office,2023-01-09,11 SERVICES,SERVICES,UK TELEMATICS LIMITED,475049,126.5,GB763051643
BEIS,Met Office,2023-01-31,11 SERVICES,SERVICES,UK TELEMATICS LIMITED,475927,126.5,GB763051643
BEIS,Met Office,2023-01-18,STOCK,SERVICES,VAISALA LTD,24512,0,336100011
BEIS,Met Office,2023-01-18,TRADE CREDITORS,SERVICES,VAISALA LTD,24512,65880.12,336100011
BEIS,Met Office,2023-01-18,07 EQUIPMENT,SERVICES,Vaisala Oyj,24414,1813.43,FI01244162
BEIS,Met Office,2023-01-18,07 EQUIPMENT,SERVICES,Vaisala Oyj,24415,1813.43,FI01244162
BEIS,Met Office,2023-01-18,07 EQUIPMENT,SERVICES,Vaisala Oyj,24413,2599.25,FI01244162
BEIS,Met Office,2023-01-18,07 EQUIPMENT,SERVICES,Vaisala Oyj,24414,7555.95,FI01244162
BEIS,Met Office,2023-01-18,07 EQUIPMENT,SERVICES,Vaisala Oyj,24415,7555.95,FI01244162
BEIS,Met Office,2023-01-04,07 EQUIPMENT,SERVICES,Vaisala Oyj,24420,8410.19,FI01244162
BEIS,Met Office,2023-01-18,07 EQUIPMENT,SERVICES,Vaisala Oyj,24413,10830.2,FI01244162
BEIS,Met Office,2023-01-04,07 EQUIPMENT,SERVICES,Vaisala Oyj,24420,35042.48,FI01244162
BEIS,Met Office,2023-01-30,STOCK,SERVICES,YORLAB,475647,0,288849088
BEIS,Met Office,2023-01-30,11 SERVICES,SERVICES,YORLAB,475647,17,288849088
BEIS,Met Office,2023-01-30,TRADE CREDITORS,SERVICES,YORLAB,475647,544.56,288849088
BEIS,Met Office,2023-01-26,13 MISCELLANEOUS,SERVICES,YOUNG CALIBRATION LIMITED,475810,15,673900720
BEIS,Met Office,2023-01-26,10 EQUIPMENT MAINTENANCE,SERVICES,YOUNG CALIBRATION LIMITED,475810,1500,673900720
BEIS,Met Office,2023-01-10,11 SERVICES,TECHNOLOGY AND CIO,AKAMAI TECHNOLOGIES LTD,475140,4921.28,745091237
BEIS,Met Office,2023-01-10,11 SERVICES,TECHNOLOGY AND CIO,AKAMAI TECHNOLOGIES LTD,475140,25836.75,745091237
BEIS,Met Office,2023-01-11,11 SERVICES,TECHNOLOGY AND CIO,AMAZON WEB SERVICES EMEA SARL,10906,1150.53,GB 283644382
BEIS,Met Office,2023-01-11,11 SERVICES,TECHNOLOGY AND CIO,AMAZON WEB SERVICES EMEA SARL,10909,250764.33,GB 283644382
BEIS,Met Office,2023-01-19,11 SERVICES,TECHNOLOGY AND CIO,BAE SYSTEMS APPLIED INTELLIGENCE LIMITED,475551,-40000.07,GB641407169
BEIS,Met Office,2023-01-09,11 SERVICES,TECHNOLOGY AND CIO,BAE SYSTEMS APPLIED INTELLIGENCE LIMITED,474756,-1623,GB641407169
BEIS,Met Office,2023-01-18,11 SERVICES,TECHNOLOGY AND CIO,BAE SYSTEMS APPLIED INTELLIGENCE LIMITED,475513,1350,GB641407169
BEIS,Met Office,2023-01-16,11 SERVICES,TECHNOLOGY AND CIO,BAE SYSTEMS APPLIED INTELLIGENCE LIMITED,474093,3986.5,GB641407169
BEIS,Met Office,2023-01-19,11 SERVICES,TECHNOLOGY AND CIO,BAE SYSTEMS APPLIED INTELLIGENCE LIMITED,475549,4250,GB641407169
BEIS,Met Office,2023-01-20,11 SERVICES,TECHNOLOGY AND CIO,BAE SYSTEMS APPLIED INTELLIGENCE LIMITED,475655,4993.75,GB641407169
BEIS,Met Office,2023-01-17,11 SERVICES,TECHNOLOGY AND CIO,BAE SYSTEMS APPLIED INTELLIGENCE LIMITED,475508,5280,GB641407169
BEIS,Met Office,2023-01-19,11 SERVICES,TECHNOLOGY AND CIO,BAE SYSTEMS APPLIED INTELLIGENCE LIMITED,475550,5410,GB641407169
BEIS,Met Office,2023-01-20,11 SERVICES,TECHNOLOGY AND CIO,BAE SYSTEMS APPLIED INTELLIGENCE LIMITED,475634,6412.5,GB641407169
BEIS,Met Office,2023-01-19,11 SERVICES,TECHNOLOGY AND CIO,BAE SYSTEMS APPLIED INTELLIGENCE LIMITED,475547,7200,GB641407169
BEIS,Met Office,2023-01-18,11 SERVICES,TECHNOLOGY AND CIO,BAE SYSTEMS APPLIED INTELLIGENCE LIMITED,475516,7260,GB641407169
BEIS,Met Office,2023-01-17,11 SERVICES,TECHNOLOGY AND CIO,BAE SYSTEMS APPLIED INTELLIGENCE LIMITED,475504,7574,GB641407169
BEIS,Met Office,2023-01-17,11 SERVICES,TECHNOLOGY AND CIO,BAE SYSTEMS APPLIED INTELLIGENCE LIMITED,475472,7590,GB641407169
BEIS,Met Office,2023-01-20,11 SERVICES,TECHNOLOGY AND CIO,BAE SYSTEMS APPLIED INTELLIGENCE LIMITED,475635,8141,GB641407169
BEIS,Met Office,2023-01-18,11 SERVICES,TECHNOLOGY AND CIO,BAE SYSTEMS APPLIED INTELLIGENCE LIMITED,475518,8325,GB641407169
BEIS,Met Office,2023-01-19,11 SERVICES,TECHNOLOGY AND CIO,BAE SYSTEMS APPLIED INTELLIGENCE LIMITED,475556,8580,GB641407169
BEIS,Met Office,2023-01-18,11 SERVICES,TECHNOLOGY AND CIO,BAE SYSTEMS APPLIED INTELLIGENCE LIMITED,475517,8775,GB641407169
BEIS,Met Office,2023-01-18,11 SERVICES,TECHNOLOGY AND CIO,BAE SYSTEMS APPLIED INTELLIGENCE LIMITED,475512,9000,GB641407169
BEIS,Met Office,2023-01-17,11 SERVICES,TECHNOLOGY AND CIO,BAE SYSTEMS APPLIED INTELLIGENCE LIMITED,475507,9239.99,GB641407169
BEIS,Met Office,2023-01-09,11 SERVICES,TECHNOLOGY AND CIO,BAE SYSTEMS APPLIED INTELLIGENCE LIMITED,474178,9618.75,GB641407169
BEIS,Met Office,2023-01-18,11 SERVICES,TECHNOLOGY AND CIO,BAE SYSTEMS APPLIED INTELLIGENCE LIMITED,475515,9738,GB641407169
BEIS,Met Office,2023-01-18,11 SERVICES,TECHNOLOGY AND CIO,BAE SYSTEMS APPLIED INTELLIGENCE LIMITED,475509,9900,GB641407169
BEIS,Met Office,2023-01-18,11 SERVICES,TECHNOLOGY AND CIO,BAE SYSTEMS APPLIED INTELLIGENCE LIMITED,475511,9900,GB641407169
BEIS,Met Office,2023-01-18,11 SERVICES,TECHNOLOGY AND CIO,BAE SYSTEMS APPLIED INTELLIGENCE LIMITED,475514,10279,GB641407169
BEIS,Met Office,2023-01-18,11 SERVICES,TECHNOLOGY AND CIO,BAE SYSTEMS APPLIED INTELLIGENCE LIMITED,475510,10560,GB641407169
BEIS,Met Office,2023-01-20,11 SERVICES,TECHNOLOGY AND CIO,BAE SYSTEMS APPLIED INTELLIGENCE LIMITED,475636,10787,GB641407169
BEIS,Met Office,2023-01-19,11 SERVICES,TECHNOLOGY AND CIO,BAE SYSTEMS APPLIED INTELLIGENCE LIMITED,475553,10820,GB641407169
BEIS,Met Office,2023-01-19,11 SERVICES,TECHNOLOGY AND CIO,BAE SYSTEMS APPLIED INTELLIGENCE LIMITED,475546,11880,GB641407169
BEIS,Met Office,2023-01-19,11 SERVICES,TECHNOLOGY AND CIO,BAE SYSTEMS APPLIED INTELLIGENCE LIMITED,475552,11880,GB641407169
BEIS,Met Office,2023-01-20,11 SERVICES,TECHNOLOGY AND CIO,BAE SYSTEMS APPLIED INTELLIGENCE LIMITED,475633,11880,GB641407169
BEIS,Met Office,2023-01-20,11 SERVICES,TECHNOLOGY AND CIO,BAE SYSTEMS APPLIED INTELLIGENCE LIMITED,475654,12194,GB641407169
BEIS,Met Office,2023-01-19,11 SERVICES,TECHNOLOGY AND CIO,BAE SYSTEMS APPLIED INTELLIGENCE LIMITED,475557,12218.75,GB641407169
BEIS,Met Office,2023-01-17,11 SERVICES,TECHNOLOGY AND CIO,BAE SYSTEMS APPLIED INTELLIGENCE LIMITED,475506,12292.5,GB641407169
BEIS,Met Office,2023-01-17,11 SERVICES,TECHNOLOGY AND CIO,BAE SYSTEMS APPLIED INTELLIGENCE LIMITED,475505,12540,GB641407169
BEIS,Met Office,2023-01-17,11 SERVICES,TECHNOLOGY AND CIO,BAE SYSTEMS APPLIED INTELLIGENCE LIMITED,475471,13132,GB641407169
BEIS,Met Office,2023-01-19,11 SERVICES,TECHNOLOGY AND CIO,BAE SYSTEMS APPLIED INTELLIGENCE LIMITED,475555,15008,GB641407169
BEIS,Met Office,2023-01-17,11 SERVICES,TECHNOLOGY AND CIO,BAE SYSTEMS APPLIED INTELLIGENCE LIMITED,475474,16415,GB641407169
BEIS,Met Office,2023-01-17,11 SERVICES,TECHNOLOGY AND CIO,BAE SYSTEMS APPLIED INTELLIGENCE LIMITED,475473,17353,GB641407169
BEIS,Met Office,2023-01-17,11 SERVICES,TECHNOLOGY AND CIO,BAE SYSTEMS APPLIED INTELLIGENCE LIMITED,475475,17353,GB641407169
BEIS,Met Office,2023-01-17,11 SERVICES,TECHNOLOGY AND CIO,BAE SYSTEMS APPLIED INTELLIGENCE LIMITED,475470,18760,GB641407169
BEIS,Met Office,2023-01-17,11 SERVICES,TECHNOLOGY AND CIO,BAE SYSTEMS APPLIED INTELLIGENCE LIMITED,475476,18760,GB641407169
BEIS,Met Office,2023-01-19,11 SERVICES,TECHNOLOGY AND CIO,BAE SYSTEMS APPLIED INTELLIGENCE LIMITED,475554,18760,GB641407169
BEIS,Met Office,2023-01-13,11 SERVICES,TECHNOLOGY AND CIO,BJSS LIMITED,475364,10269,613295452
BEIS,Met Office,2023-01-17,08 SOFTWARE LICENCES,TECHNOLOGY AND CIO,BOXXE,475525,513.89,734245248
BEIS,Met Office,2023-01-17,08 SOFTWARE LICENCES,TECHNOLOGY AND CIO,BOXXE,475525,1173.9,734245248
BEIS,Met Office,2023-01-17,08 SOFTWARE LICENCES,TECHNOLOGY AND CIO,BOXXE,475525,1305,734245248
BEIS,Met Office,2023-01-17,08 SOFTWARE LICENCES,TECHNOLOGY AND CIO,BOXXE,475525,2052.96,734245248
BEIS,Met Office,2023-01-17,08 SOFTWARE LICENCES,TECHNOLOGY AND CIO,BOXXE,475525,2289,734245248
BEIS,Met Office,2023-01-17,08 SOFTWARE LICENCES,TECHNOLOGY AND CIO,BOXXE,475525,2691.16,734245248
BEIS,Met Office,2023-01-13,08 SOFTWARE LICENCES,TECHNOLOGY AND CIO,BOXXE,475177,4950,734245248
BEIS,Met Office,2023-01-09,08 SOFTWARE LICENCES,TECHNOLOGY AND CIO,BOXXE,474899,6156.82,734245248
BEIS,Met Office,2023-01-17,08 SOFTWARE LICENCES,TECHNOLOGY AND CIO,BOXXE,475525,7268.19,734245248
BEIS,Met Office,2023-01-11,08 SOFTWARE LICENCES,TECHNOLOGY AND CIO,BOXXE,475234,10848.44,734245248
BEIS,Met Office,2023-01-17,11 SERVICES,TECHNOLOGY AND CIO,CLOUDREACH EUROPE LIMITED,474605,1487.89,978187168
BEIS,Met Office,2023-01-17,11 SERVICES,TECHNOLOGY AND CIO,CLOUDREACH EUROPE LIMITED,474605,1990.01,978187168
BEIS,Met Office,2023-01-17,11 SERVICES,TECHNOLOGY AND CIO,CLOUDREACH EUROPE LIMITED,475522,3635.9,978187168
BEIS,Met Office,2023-01-11,11 SERVICES,TECHNOLOGY AND CIO,CLOUDREACH EUROPE LIMITED,475239,5150,978187168
BEIS,Met Office,2023-01-19,07 EQUIPMENT,TECHNOLOGY AND CIO,COMPUTACENTER (UK) LTD,475631,569.26,490334648
BEIS,Met Office,2023-01-31,07 EQUIPMENT,TECHNOLOGY AND CIO,COMPUTACENTER (UK) LTD,475919,912.6,490334648
BEIS,Met Office,2023-01-25,07 EQUIPMENT,TECHNOLOGY AND CIO,COMPUTACENTER (UK) LTD,475763,2285.28,490334648
BEIS,Met Office,2023-01-05,10 EQUIPMENT MAINTENANCE,TECHNOLOGY AND CIO,COMPUTACENTER (UK) LTD,474917,2527.95,490334648
BEIS,Met Office,2023-01-06,08 SOFTWARE LICENCES,TECHNOLOGY AND CIO,COMPUTACENTER (UK) LTD,474953,2542,490334648
BEIS,Met Office,2023-01-20,11 SERVICES,TECHNOLOGY AND CIO,COMPUTACENTER (UK) LTD,475638,2616.5,490334648
BEIS,Met Office,2023-01-06,08 SOFTWARE LICENCES,TECHNOLOGY AND CIO,COMPUTACENTER (UK) LTD,474940,2812.32,490334648
BEIS,Met Office,2023-01-19,11 SERVICES,TECHNOLOGY AND CIO,COMPUTACENTER (UK) LTD,475649,2938.64,490334648
BEIS,Met Office,2023-01-31,10 EQUIPMENT MAINTENANCE,TECHNOLOGY AND CIO,COMPUTACENTER (UK) LTD,475934,3370.6,490334648
BEIS,Met Office,2023-01-09,07 EQUIPMENT,TECHNOLOGY AND CIO,COMPUTACENTER (UK) LTD,474941,4908,490334648
BEIS,Met Office,2023-01-09,10 EQUIPMENT MAINTENANCE,TECHNOLOGY AND CIO,COMPUTACENTER (UK) LTD,475047,7883.01,490334648
BEIS,Met Office,2023-01-31,10 EQUIPMENT MAINTENANCE,TECHNOLOGY AND CIO,COMPUTACENTER (UK) LTD,475933,44075.07,490334648
BEIS,Met Office,2023-01-26,10 EQUIPMENT MAINTENANCE,TECHNOLOGY AND CIO,COMPUTACENTER (UK) LTD,475825,49220.07,490334648
BEIS,Met Office,2023-01-10,03 STAFF COSTS T&S,TECHNOLOGY AND CIO,DBS FINANCE RECEIPTS CTS,474925,90,888805068
BEIS,Met Office,2023-01-11,12 INTERNATIONAL,TECHNOLOGY AND CIO,ERCIM,24156,6665.57,FR07388389421
BEIS,Met Office,2023-01-11,08 SOFTWARE LICENCES,TECHNOLOGY AND CIO,ET SPATIAL TECHNIQUES,10879,1303.84,-
BEIS,Met Office,2023-01-10,11 SERVICES,TECHNOLOGY AND CIO,FCDO SERVICES,474930,1650,888848729
BEIS,Met Office,2023-01-13,10 EQUIPMENT MAINTENANCE,TECHNOLOGY AND CIO,FLOW COMMUNICATIONS (UK) LTD,475235,6301.54,970973088
BEIS,Met Office,2023-01-09,11 SERVICES,TECHNOLOGY AND CIO,FLYFORM LTD,475052,2985,237333808
BEIS,Met Office,2023-01-09,08 SOFTWARE LICENCES,TECHNOLOGY AND CIO,GOOGLE IRELAND LTD,475009,54.54,6388047V
BEIS,Met Office,2023-01-23,10 EQUIPMENT MAINTENANCE,TECHNOLOGY AND CIO,Hewlett Packard Ltd,475099,148591,314149679
BEIS,Met Office,2023-01-11,10 EQUIPMENT MAINTENANCE,TECHNOLOGY AND CIO,Hewlett Packard Ltd,475262,267577.56,314149679
BEIS,Met Office,2023-01-23,10 EQUIPMENT MAINTENANCE,TECHNOLOGY AND CIO,Hewlett Packard Ltd,475099,280284,314149679
BEIS,Met Office,2023-01-23,10 EQUIPMENT MAINTENANCE,TECHNOLOGY AND CIO,Hewlett Packard Ltd,475099,900000,314149679
BEIS,Met Office,2023-01-26,11 SERVICES,TECHNOLOGY AND CIO,Ibm United Kingdom Ltd,475355,620,107328000
BEIS,Met Office,2023-01-06,08 SOFTWARE LICENCES,TECHNOLOGY AND CIO,Ibm United Kingdom Ltd,475008,7253.6,107328000
BEIS,Met Office,2023-01-10,11 SERVICES,TECHNOLOGY AND CIO,Ibm United Kingdom Ltd,475003,12820.5,107328000
BEIS,Met Office,2023-01-03,11 SERVICES,TECHNOLOGY AND CIO,NEXUS OPEN SYSTEMS LTD,470401,-3798.22,723221673
BEIS,Met Office,2023-01-03,08 SOFTWARE LICENCES,TECHNOLOGY AND CIO,NEXUS OPEN SYSTEMS LTD,473824,163.92,723221673
BEIS,Met Office,2023-01-03,07 EQUIPMENT,TECHNOLOGY AND CIO,NEXUS OPEN SYSTEMS LTD,472966,179.29,723221673
BEIS,Met Office,2023-01-03,08 SOFTWARE LICENCES,TECHNOLOGY AND CIO,NEXUS OPEN SYSTEMS LTD,473824,728.56,723221673
BEIS,Met Office,2023-01-03,08 SOFTWARE LICENCES,TECHNOLOGY AND CIO,NEXUS OPEN SYSTEMS LTD,474722,70985.34,723221673
BEIS,Met Office,2023-01-11,08 SOFTWARE LICENCES,TECHNOLOGY AND CIO,NOC INNOVATIONS LIMITED,475172,3762,-
BEIS,Met Office,2023-01-09,10 EQUIPMENT MAINTENANCE,TECHNOLOGY AND CIO,ORACLE CORPORATION UK LTD,475076,288.33,391313073
BEIS,Met Office,2023-01-31,08 SOFTWARE LICENCES,TECHNOLOGY AND CIO,PHOENIX SOFTWARE LIMITED,475946,1057.28,755349015
BEIS,Met Office,2023-01-31,08 SOFTWARE LICENCES,TECHNOLOGY AND CIO,PHOENIX SOFTWARE LIMITED,475946,5849.76,755349015
BEIS,Met Office,2023-01-31,08 SOFTWARE LICENCES,TECHNOLOGY AND CIO,PHOENIX SOFTWARE LIMITED,475946,10763.04,755349015
BEIS,Met Office,2023-01-31,08 SOFTWARE LICENCES,TECHNOLOGY AND CIO,PHOENIX SOFTWARE LIMITED,475946,32476.32,755349015
BEIS,Met Office,2023-01-05,11 SERVICES,TECHNOLOGY AND CIO,QA LTD,474905,810,864455303
BEIS,Met Office,2023-01-11,11 SERVICES,TECHNOLOGY AND CIO,QA LTD,475068,3300,864455303
BEIS,Met Office,2023-01-17,11 SERVICES,TECHNOLOGY AND CIO,QA LTD,475558,4820,864455303
BEIS,Met Office,2023-01-30,11 SERVICES,TECHNOLOGY AND CIO,QA LTD,475886,5100,864455303
BEIS,Met Office,2023-01-31,11 SERVICES,TECHNOLOGY AND CIO,QA LTD,475837,43650,864455303
BEIS,Met Office,2023-01-05,11 SERVICES,TECHNOLOGY AND CIO,QA LTD,474901,50400,864455303
BEIS,Met Office,2023-01-19,11 SERVICES,TECHNOLOGY AND CIO,RISUAL LIMITED,475650,2850,864480893
BEIS,Met Office,2023-01-26,11 SERVICES,TECHNOLOGY AND CIO,RISUAL LIMITED,475789,3800,864480893
BEIS,Met Office,2023-01-05,08 SOFTWARE LICENCES,TECHNOLOGY AND CIO,SPECIALIST COMPUTER CENTRES,474888,30.72,313651680
BEIS,Met Office,2023-01-09,08 SOFTWARE LICENCES,TECHNOLOGY AND CIO,SPECIALIST COMPUTER CENTRES,474884,309.87,313651680
BEIS,Met Office,2023-01-20,08 SOFTWARE LICENCES,TECHNOLOGY AND CIO,SPECIALIST COMPUTER CENTRES,475672,320.22,313651680
BEIS,Met Office,2023-01-23,11 SERVICES,TECHNOLOGY AND CIO,SPECIALIST COMPUTER CENTRES,475725,1890.41,313651680
BEIS,Met Office,2023-01-05,11 SERVICES,TECHNOLOGY AND CIO,SPECIALIST COMPUTER CENTRES,474887,9499.8,313651680
BEIS,Met Office,2023-01-25,08 SOFTWARE LICENCES,TECHNOLOGY AND CIO,SPECIALIST COMPUTER CENTRES,475790,32146.61,313651680
BEIS,Met Office,2023-01-12,11 SERVICES,TECHNOLOGY AND CIO,SSE CONTRACTING LTD,475302,10912.87,382894546
BEIS,Met Office,2023-01-11,11 SERVICES,TECHNOLOGY AND CIO,SYNTHESYS SYSTEMS ENGINEERS LTD,475258,1857.6,499309492
BEIS,Met Office,2023-01-12,INFORMATION TECHNOLOGY,TECHNOLOGY AND CIO,TELEFONICA O2 UK LIMITED,475197,59290,778603785
BEIS,Met Office,2023-01-26,11 SERVICES,TECHNOLOGY AND CIO,TSG TRAINING LTD,475842,95,GB 279 0047 91
BEIS,Met Office,2023-01-09,11 SERVICES,TECHNOLOGY AND CIO,WIREFAST LTD,475025,467.81,749536001
BEIS,Met Office,2023-01-09,11 SERVICES,TECHNOLOGY AND CIO,WIREFAST LTD,475023,1624.35,749536001
BEIS,Met Office,2023-01-09,11 SERVICES,TECHNOLOGY AND CIO,WIREFAST LTD,475026,1820.07,749536001
BEIS,Met Office,2023-01-12,11 SERVICES,TECHNOLOGY AND CIO,WT CONSULTANCY (SW) LTD,475075,1400,223 4662 25
